fUST/lending_fUST_20250628
["ID","MTS","AMOUNT","RATE_DAILY","PERIOD"]
[368164247,1751044241835,-460.0,0.00019452,2]
[368164249,1751044241844,-460.0,0.00019452,2]
[368164251,1751044241853,-460.0,0.00019452,2]
[368164253,1751044241862,-460.0,0.00019452,2]
[368164255,1751044241871,-442.30942936,0.00019452,2]
[368164257,1751044241880,-460.0,0.00019452,2]
[368164259,1751044241892,-462.64560232,0.00019452,2]
[368164261,1751044241901,-360.0,0.00019452,2]
[368164263,1751044241911,-460.0,0.00019452,2]
[368164265,1751044241921,-462.54580482,0.00019452,2]
[368164267,1751044241931,-467.1087756,0.00019452,2]
[368164269,1751044241940,-460.0,0.00019452,2]
[368164271,1751044241950,-465.73596304,0.00019452,2]
[368164273,1751044241960,-500.0,0.00019452,2]
[368164275,1751044241970,-460.0,0.00019452,2]
[368164277,1751044241979,-460.0,0.00019452,2]
[368164279,1751044241988,-460.0,0.00019452,2]
[368164281,1751044241997,-460.0,0.00019452,2]
[368164283,1751044242007,-460.0,0.00019452,2]
[368164285,1751044242016,-587.96,0.00019452,2]
[368164287,1751044242026,-460.0,0.00019452,2]
[368164289,1751044242035,-460.0,0.00019452,2]
[368164291,1751044242045,-460.0,0.00019452,2]
[368164293,1751044242054,-460.0,0.00019452,2]
[368164295,1751044242063,-463.85367909,0.00019452,2]
[368164297,1751044242072,-463.50923836,0.00019452,2]
[368164299,1751044242082,-460.0,0.00019452,2]
[368164301,1751044242094,-460.0,0.00019452,2]
[368164303,1751044242103,-460.0,0.00019452,2]
[368164305,1751044242112,-4008.33,0.00019452,2]
[368164307,1751044242121,-1317.0,0.00019452,2]
[368164309,1751044242131,-235.31,0.00019452,2]
[368164311,1751044242140,-460.0,0.00019452,2]
[368164313,1751044242150,-460.0,0.00019452,2]
[368164315,1751044242159,-460.0,0.00019452,2]
[368164317,1751044242170,-460.0,0.00019452,2]
[368164319,1751044242179,-559.86,0.00019452,2]
[368164321,1751044242188,-4030.98,0.00019452,2]
[368164323,1751044242198,-2388.15,0.00019452,2]
[368164325,1751044242207,-460.0,0.00019452,2]
[368164327,1751044242216,-460.0,0.00019452,2]
[368164329,1751044242226,-4372.06,0.00019452,2]
[368164331,1751044242235,-460.0,0.00019452,2]
[368164333,1751044242245,-460.0,0.00019452,2]
[368164335,1751044242254,-460.0,0.00019452,2]
[368164337,1751044242263,-1057.19,0.00019452,2]
[368164339,1751044242273,-460.0,0.00019452,2]
[368164341,1751044242282,-650.22,0.00019452,2]
[368164343,1751044242292,-460.0,0.00019452,2]
[368164345,1751044242301,-460.0,0.00019452,2]
[368164348,1751044242311,-460.0,0.00019452,2]
[368164350,1751044242320,-460.0,0.00019452,2]
[368164351,1751044242330,-1848.03,0.00019452,2]
[368164353,1751044242339,-463.03041247,0.00019452,2]
[368164355,1751044242349,-460.0,0.00019452,2]
[368164357,1751044242361,-460.0,0.00019452,2]
[368164359,1751044242370,-460.0,0.00019452,2]
[368164361,1751044242380,-1314.08,0.00019452,2]
[368164363,1751044242389,-2238.97,0.00019452,2]
[368164365,1751044242398,-460.0,0.00019452,2]
[368164367,1751044242408,-460.0,0.00019452,2]
[368164369,1751044242417,-460.0,0.00019452,2]
[368164371,1751044242426,-460.0,0.00019452,2]
[368164374,1751044242436,-479.21,0.00019452,2]
[368164375,1751044242445,-1442.14,0.00019452,2]
[368164377,1751044242454,-1550.29,0.00019452,2]
[368164379,1751044242463,-465.31582066,0.00019452,2]
[368164381,1751044242473,-460.0,0.00019452,2]
[368164384,1751044242483,-538.63,0.00019452,2]
[368164386,1751044242492,-436.12665083,0.00019452,2]
[368164387,1751044242501,-460.0,0.00019452,2]
[368164389,1751044242511,-460.0,0.00019452,2]
[368164391,1751044242520,-460.0,0.00019452,2]
[368164393,1751044242529,-460.0,0.00019452,2]
[368164396,1751044242539,-460.0,0.00019452,2]
[368164398,1751044242549,-222.23631958,0.00019452,2]
[368164400,1751044242559,-460.0,0.00019452,2]
[368164402,1751044242568,-460.0,0.00019452,2]
[368164404,1751044242577,-460.0,0.00019452,2]
[368164406,1751044242587,-460.0,0.00019452,2]
[368164408,1751044242596,-460.0,0.00019452,2]
[368164410,1751044242606,-1304.38,0.00019452,2]
[368164412,1751044242616,-460.0,0.00019452,2]
[368164414,1751044242625,-460.0,0.00019452,2]
[368164416,1751044242634,-157.02247952,0.00019452,2]
[368164418,1751044242644,-460.0,0.00019452,2]
[368164420,1751044242653,-531.17,0.00019452,2]
[368164422,1751044242662,-356.19508703,0.00019452,2]
[368164424,1751044242672,-460.0,0.00019452,2]
[368164425,1751044242681,-460.0,0.00019452,2]
[368164427,1751044242691,-352.46589784,0.00019452,2]
[368164429,1751044242700,-460.0,0.00019452,2]
[368164431,1751044242710,-460.0,0.00019452,2]
[368164434,1751044242719,-557.69,0.00019452,2]
[368164436,1751044242729,-460.0,0.00019452,2]
[368164438,1751044242738,-460.0,0.00019452,2]
[368164440,1751044242747,-305.20686427,0.00019452,2]
[368164442,1751044242757,-460.0,0.00019452,2]
[368164444,1751044242767,-460.0,0.00019452,2]
[368164447,1751044242776,-460.0,0.00019452,2]
[368164450,1751044242786,-258.84722206,0.00019452,2]
[368164452,1751044242795,-1689.49,0.00019452,2]
[368164454,1751044242804,-460.0,0.00019452,2]
[368164456,1751044242813,-460.0,0.00019452,2]
[368164458,1751044242823,-460.0,0.00019452,2]
[368164461,1751044242832,-460.0,0.00019452,2]
[368164463,1751044242842,-668.04,0.00019452,2]
[368164465,1751044242851,-460.0,0.00019452,2]
[368164467,1751044242861,-460.0,0.00019452,2]
[368164469,1751044242871,-822.46,0.00019452,2]
[368164471,1751044242881,-460.0,0.00019452,2]
[368164473,1751044242896,-1125.48,0.00019452,2]
[368164475,1751044242904,-460.0,0.00019452,2]
[368164478,1751044242914,-460.0,0.00019452,2]
[368164480,1751044242923,-660.45,0.00019452,2]
[368164483,1751044242933,-1596.94,0.00019452,2]
[368164486,1751044242942,-460.0,0.00019452,2]
[368164489,1751044242951,-466.41196086,0.00019452,2]
[368164492,1751044242960,-460.0,0.00019452,2]
[368164495,1751044242970,-460.0,0.00019452,2]
[368164497,1751044242980,-3305.48,0.00019452,2]
[368164499,1751044242988,-460.0,0.00019452,2]
[368164501,1751044242997,-460.0,0.00019452,2]
[368164503,1751044243008,-460.0,0.00019452,2]
[368164505,1751044243017,-460.0,0.00019452,2]
[368164507,1751044243027,-460.0,0.00019452,2]
[368164509,1751044243036,-460.0,0.00019452,2]
[368164511,1751044243046,-460.0,0.00019452,2]
[368164513,1751044243055,-460.0,0.00019452,2]
[368164516,1751044243064,-460.0,0.00019452,2]
[368164518,1751044243074,-460.0,0.00019452,2]
[368164520,1751044243083,-460.0,0.00019452,2]
[368164522,1751044243092,-460.0,0.00019452,2]
[368164534,1751044243194,-2132.02,0.00019452,2]
[368164536,1751044243204,-460.0,0.00019452,2]
[368164538,1751044243214,-460.0,0.00019452,2]
[368164540,1751044243224,-767.27,0.00019452,2]
[368164542,1751044243234,-797.19,0.00019452,2]
[368164544,1751044243244,-460.0,0.00019452,2]
[368164547,1751044243254,-460.0,0.00019452,2]
[368164548,1751044243263,-460.0,0.00019452,2]
[368164550,1751044243273,-588.09361166,0.00019452,2]
[368164552,1751044243283,-460.0,0.00019452,2]
[368164554,1751044243292,-460.0,0.00019452,2]
[368164556,1751044243301,-460.0,0.00019452,2]
[368164558,1751044243311,-725.09,0.00019452,2]
[368164560,1751044243319,-460.0,0.00019452,2]
[368164562,1751044243329,-460.0,0.00019452,2]
[368164564,1751044243339,-460.0,0.00019452,2]
[368164566,1751044243348,-460.0,0.00019452,2]
[368164568,1751044243358,-460.0,0.00019452,2]
[368164570,1751044243367,-506.68883614,0.00019452,2]
[368164572,1751044243376,-460.0,0.00019452,2]
[368164574,1751044243386,-460.0,0.00019452,2]
[368164576,1751044243396,-1086.18,0.00019452,2]
[368164578,1751044243405,-460.0,0.00019452,2]
[368164580,1751044243415,-460.0,0.00019452,2]
[368164582,1751044243424,-6387.58,0.00019452,2]
[368164584,1751044243433,-500.0,0.00019452,2]
[368164586,1751044243442,-4812.41,0.00019452,2]
[368164588,1751044243451,-1355.23,0.00019452,2]
[368164590,1751044243460,-460.0,0.00019452,2]
[368164592,1751044243469,-460.0,0.00019452,2]
[368164594,1751044243478,-742.71,0.00019452,2]
[368164596,1751044243487,-3384.08,0.00019452,2]
[368164598,1751044243497,-460.0,0.00019452,2]
[368164600,1751044243507,-460.0,0.00019452,2]
[368164602,1751044243516,-460.0,0.00019452,2]
[368164604,1751044243524,-494.79,0.00019452,2]
[368164606,1751044243534,-460.0,0.00019452,2]
[368164608,1751044243543,-460.0,0.00019452,2]
[368164610,1751044243553,-460.0,0.00019452,2]
[368164611,1751044243562,-460.0,0.00019452,2]
[368164613,1751044243571,-835.16,0.00019452,2]
[368164615,1751044243581,-460.0,0.00019452,2]
[368164617,1751044243591,-460.0,0.00019452,2]
[368164619,1751044243601,-500.0,0.00019473,2]
[368164621,1751044243611,-500.0,0.00019473,2]
[368164623,1751044243621,-500.0,0.00019473,2]
[368164625,1751044243631,-500.0,0.00019473,2]
[368164627,1751044243641,-500.0,0.00019473,2]
[368164629,1751044243650,-500.0,0.00019473,2]
[368164631,1751044243661,-500.0,0.00019473,2]
[368164633,1751044243670,-500.0,0.00019473,2]
[368164635,1751044243682,-619.19986153,0.00019473,2]
[368164637,1751044243692,-500.0,0.00019473,2]
[368164639,1751044243701,-500.0,0.00019473,2]
[368164641,1751044243711,-500.0,0.00019473,2]
[368164643,1751044243721,-500.0,0.00019473,2]
[368164645,1751044243732,-500.0,0.00019473,2]
[368164647,1751044243742,-550.35644472,0.00019473,2]
[368164649,1751044243752,-500.8586686,0.00019473,2]
[368164651,1751044243762,-500.0,0.00019473,2]
[368164653,1751044243772,-500.0,0.00019473,2]
[368164656,1751044243782,-500.0,0.00019473,2]
[368164657,1751044243792,-500.0,0.00019473,2]
[368164659,1751044243803,-500.0,0.00019473,2]
[368164661,1751044243813,-500.0,0.00019473,2]
[368164663,1751044243823,-500.0,0.00019473,2]
[368164666,1751044243833,-500.0,0.00019473,2]
[368164668,1751044243842,-500.0,0.00019473,2]
[368164670,1751044243852,-500.0,0.00019473,2]
[368164671,1751044243863,-500.0,0.00019473,2]
[368164674,1751044243873,-500.0,0.00019473,2]
[368164676,1751044243884,-500.0,0.00019473,2]
[368164678,1751044243898,-1453.05621627,0.00019489,2]
[368164680,1751044243906,-331.0,0.00019648,2]
[368164682,1751044243916,-500.0,0.00019675,2]
[368164683,1751044243925,-500.0,0.00019675,2]
[368164685,1751044243934,-500.0,0.00019675,2]
[368164687,1751044243944,-500.0,0.00019721,2]
[368164689,1751044243954,-500.0,0.00019721,2]
[368164691,1751044243965,-1000.0,0.00019721,2]
[368164693,1751044243974,-481.68474319,0.00019721,2]
[368164695,1751044243983,-183.98105952,0.00019726,2]
[368164697,1751044243994,-460.0,0.00019726,2]
[368164700,1751044244005,-460.0,0.00019726,2]
[368164701,1751044244014,-460.0,0.00019726,2]
[368164703,1751044244024,-438.01766789,0.00019726,2]
[368164706,1751044244034,-460.0,0.00019726,2]
[368164708,1751044244046,-460.0,0.00019726,2]
[368164709,1751044244056,-460.0,0.00019726,2]
[368164711,1751044244065,-450.0,0.00019726,2]
[368164713,1751044244075,-221.08656136,0.00019726,2]
[368164715,1751044244084,-460.0,0.00019726,2]
[368164718,1751044244096,-460.0,0.00019726,2]
[368164719,1751044244106,-460.0,0.00019726,2]
[368164721,1751044244115,-460.0,0.00019726,2]
[368164723,1751044244125,-460.0,0.00019726,2]
[368164725,1751044244134,-460.0,0.00019726,2]
[368164727,1751044244143,-460.0,0.00019726,2]
[368164729,1751044244153,-460.0,0.00019726,2]
[368164731,1751044244162,-460.0,0.00019726,2]
[368164733,1751044244171,-460.0,0.00019726,2]
[368164735,1751044244181,-460.0,0.00019726,2]
[368164737,1751044244190,-971.18,0.00019726,2]
[368164739,1751044244200,-460.0,0.00019726,2]
[368164741,1751044244210,-460.0,0.00019726,2]
[368164743,1751044244220,-460.0,0.00019726,2]
[368164745,1751044244229,-460.0,0.00019726,2]
[368164747,1751044244239,-460.0,0.00019726,2]
[368164749,1751044244249,-460.0,0.00019726,2]
[368164751,1751044244258,-460.0,0.00019726,2]
[368164753,1751044244267,-460.0,0.00019726,2]
[368164755,1751044244277,-316.94377066,0.00019726,2]
[368164757,1751044244286,-213.53654037,0.00019726,2]
[368164759,1751044244295,-460.0,0.00019726,2]
[368164761,1751044244305,-460.0,0.00019726,2]
[368164763,1751044244314,-460.0,0.00019726,2]
[368164765,1751044244324,-471.98705521,0.00019726,2]
[368164767,1751044244333,-460.0,0.00019726,2]
[368164769,1751044244342,-440.0,0.00019726,2]
[368164771,1751044244352,-460.0,0.00019726,2]
[368164773,1751044244360,-460.0,0.00019726,2]
[368164775,1751044244370,-460.0,0.00019726,2]
[368164776,1751044244379,-540.09598017,0.00019726,2]
[368164779,1751044244389,-460.0,0.00019726,2]
[368164780,1751044244398,-460.0,0.00019726,2]
[368164782,1751044244407,-460.0,0.00019726,2]
[368164784,1751044244417,-460.0,0.00019726,2]
[368164786,1751044244426,-463.67,0.00019726,2]
[368164788,1751044244435,-460.0,0.00019726,2]
[368164790,1751044244444,-460.0,0.00019726,2]
[368164792,1751044244454,-460.0,0.00019726,2]
[368164794,1751044244463,-649.97,0.00019726,2]
[368164796,1751044244473,-460.0,0.00019726,2]
[368164798,1751044244482,-460.0,0.00019726,2]
[368164800,1751044244492,-460.0,0.00019726,2]
[368164802,1751044244501,-460.0,0.00019726,2]
[368164804,1751044244510,-460.0,0.00019726,2]
[368164806,1751044244520,-460.0,0.00019726,2]
[368164808,1751044244529,-460.0,0.00019726,2]
[368164810,1751044244538,-460.0,0.00019726,2]
[368164812,1751044244547,-472.45672854,0.00019726,2]
[368164814,1751044244556,-718.47,0.00019726,2]
[368164816,1751044244565,-533.18,0.00019726,2]
[368164818,1751044244574,-460.0,0.00019726,2]
[368164820,1751044244584,-460.0,0.00019726,2]
[368164821,1751044244594,-460.0,0.00019726,2]
[368164823,1751044244603,-460.0,0.00019726,2]
[368164825,1751044244612,-460.0,0.00019726,2]
[368164827,1751044244622,-460.0,0.00019726,2]
[368164829,1751044244631,-460.0,0.00019726,2]
[368164831,1751044244640,-460.0,0.00019726,2]
[368164833,1751044244650,-460.0,0.00019726,2]
[368164835,1751044244659,-555.32131225,0.00019726,2]
[368164837,1751044244669,-767.68,0.00019726,2]
[368164839,1751044244678,-593.6,0.00019726,2]
[368164841,1751044244687,-460.0,0.00019726,2]
[368164843,1751044244696,-465.07791081,0.00019726,2]
[368164845,1751044244705,-460.0,0.00019726,2]
[368164847,1751044244714,-465.89228058,0.00019726,2]
[368164849,1751044244723,-460.0,0.00019726,2]
[368164851,1751044244732,-460.0,0.00019726,2]
[368164853,1751044244742,-461.28198294,0.00019726,2]
[368164855,1751044244751,-460.0,0.00019726,2]
[368164857,1751044244760,-165.4410813,0.00019726,2]
[368164859,1751044244769,-460.0,0.00019726,2]
[368164861,1751044244778,-587.96,0.00019726,2]
[368164863,1751044244787,-460.0,0.00019726,2]
[368164865,1751044244798,-252.8,0.00019726,2]
[368164866,1751044244808,-460.0,0.00019726,2]
[368164868,1751044244818,-460.0,0.00019726,2]
[368164870,1751044244828,-460.0,0.00019726,2]
[368164873,1751044244839,-460.0,0.00019726,2]
[368164874,1751044244849,-460.0,0.00019726,2]
[368164876,1751044244859,-4008.33,0.00019726,2]
[368164879,1751044244869,-1317.0,0.00019726,2]
[368164880,1751044244878,-460.0,0.00019726,2]
[368164882,1751044244890,-460.0,0.00019726,2]
[368164884,1751044244899,-213.92,0.00019726,2]
[368164886,1751044244908,-559.86,0.00019726,2]
[368164888,1751044244917,-4030.98,0.00019726,2]
[368164890,1751044244927,-2388.15,0.00019726,2]
[368164892,1751044244936,-4372.06,0.00019726,2]
[368164894,1751044244945,-466.79636925,0.00019726,2]
[368164896,1751044244955,-464.68311241,0.00019726,2]
[368164898,1751044244966,-460.0,0.00019726,2]
[368164900,1751044244976,-1057.19,0.00019726,2]
[368164902,1751044244985,-460.0,0.00019726,2]
[368164912,1751044245081,-650.22,0.00019726,2]
[368164914,1751044245091,-264.86221407,0.00019726,2]
[368164916,1751044245100,-195.76815156,0.00019726,2]
[368164918,1751044245109,-499.78424326,0.00019726,2]
[368164920,1751044245119,-460.0,0.00019726,2]
[368164922,1751044245127,-1848.03,0.00019726,2]
[368164924,1751044245137,-460.0,0.00019726,2]
[368164926,1751044245147,-460.0,0.00019726,2]
[368164928,1751044245156,-1314.08,0.00019726,2]
[368164930,1751044245166,-2238.97,0.00019726,2]
[368164932,1751044245175,-460.0,0.00019726,2]
[368164933,1751044245185,-460.0,0.00019726,2]
[368164935,1751044245195,-460.0,0.00019726,2]
[368164937,1751044245204,-460.0,0.00019726,2]
[368164939,1751044245214,-479.21,0.00019726,2]
[368164941,1751044245223,-1442.14,0.00019726,2]
[368164943,1751044245233,-1550.29,0.00019726,2]
[368164945,1751044245243,-460.0,0.00019726,2]
[368164947,1751044245253,-538.63,0.00019726,2]
[368164949,1751044245262,-466.04038723,0.00019726,2]
[368164951,1751044245272,-460.0,0.00019726,2]
[368164953,1751044245281,-460.0,0.00019726,2]
[368164955,1751044245291,-566.05336089,0.00019726,2]
[368164957,1751044245300,-460.0,0.00019726,2]
[368164959,1751044245310,-460.0,0.00019726,2]
[368164961,1751044245319,-460.0,0.00019726,2]
[368164963,1751044245328,-460.0,0.00019726,2]
[368164965,1751044245338,-460.0,0.00019726,2]
[368164966,1751044245347,-460.0,0.00019726,2]
[368164968,1751044245356,-1304.38,0.00019726,2]
[368164970,1751044245365,-460.0,0.00019726,2]
[368164972,1751044245375,-531.17,0.00019726,2]
[368164974,1751044245385,-460.0,0.00019726,2]
[368164976,1751044245395,-460.0,0.00019726,2]
[368164978,1751044245404,-460.0,0.00019726,2]
[368164980,1751044245414,-557.69,0.00019726,2]
[368164982,1751044245424,-460.0,0.00019726,2]
[368164984,1751044245433,-460.0,0.00019726,2]
[368164986,1751044245442,-460.0,0.00019726,2]
[368164988,1751044245452,-460.0,0.00019726,2]
[368164990,1751044245462,-338.31,0.00019726,2]
[368164992,1751044245472,-1689.49,0.00019726,2]
[368164993,1751044245482,-460.0,0.00019726,2]
[368164994,1751044245491,-460.0,0.00019726,2]
[368164995,1751044245500,-460.0,0.00019726,2]
[368164996,1751044245510,-668.04,0.00019726,2]
[368164997,1751044245519,-460.0,0.00019726,2]
[368164998,1751044245528,-822.46,0.00019726,2]
[368164999,1751044245538,-460.0,0.00019726,2]
[368165000,1751044245547,-1125.48,0.00019726,2]
[368165001,1751044245556,-1596.94,0.00019726,2]
[368165002,1751044245565,-460.0,0.00019726,2]
[368165003,1751044245574,-460.0,0.00019726,2]
[368165004,1751044245584,-660.45,0.00019726,2]
[368165005,1751044245594,-460.0,0.00019726,2]
[368165006,1751044245604,-3305.48,0.00019726,2]
[368165007,1751044245613,-460.0,0.00019726,2]
[368165009,1751044245623,-460.0,0.00019726,2]
[368165011,1751044245632,-460.0,0.00019726,2]
[368165013,1751044245641,-460.0,0.00019726,2]
[368165015,1751044245650,-460.0,0.00019726,2]
[368165017,1751044245659,-460.0,0.00019726,2]
[368165019,1751044245668,-467.63551549,0.00019726,2]
[368165021,1751044245680,-460.0,0.00019726,2]
[368165023,1751044245690,-429.63501287,0.00019726,2]
[368165025,1751044245700,-460.0,0.00019726,2]
[368165027,1751044245709,-460.0,0.00019726,2]
[368165029,1751044245719,-2132.02,0.00019726,2]
[368165031,1751044245729,-460.0,0.00019726,2]
[368165032,1751044245738,-767.27,0.00019726,2]
[368165036,1751044245748,-797.19,0.00019726,2]
[368165038,1751044245759,-460.0,0.00019726,2]
[368165039,1751044245769,-460.0,0.00019726,2]
[368165041,1751044245779,-460.0,0.00019726,2]
[368165043,1751044245789,-460.0,0.00019726,2]
[368165047,1751044245799,-460.0,0.00019726,2]
[368165049,1751044245809,-725.09,0.00019726,2]
[368165051,1751044245818,-460.0,0.00019726,2]
[368165053,1751044245827,-460.0,0.00019726,2]
[368165055,1751044245836,-460.0,0.00019726,2]
[368165057,1751044245846,-460.0,0.00019726,2]
[368165059,1751044245856,-470.05944169,0.00019726,2]
[368165061,1751044245867,-460.0,0.00019726,2]
[368165063,1751044245876,-460.0,0.00019726,2]
[368165065,1751044245887,-1086.18,0.00019726,2]
[368165067,1751044245898,-460.0,0.00019726,2]
[368165070,1751044245907,-6387.58,0.00019726,2]
[368165073,1751044245917,-500.0,0.00019726,2]
[368165075,1751044245927,-4812.41,0.00019726,2]
[368165077,1751044245937,-1355.23,0.00019726,2]
[368165079,1751044245947,-409.9871153,0.00019726,2]
[368165081,1751044245957,-742.71,0.00019726,2]
[368165083,1751044245967,-3384.08,0.00019726,2]
[368165085,1751044245978,-460.0,0.00019726,2]
[368165087,1751044245987,-494.79,0.00019726,2]
[368165089,1751044245997,-203.18531287,0.00019726,2]
[368165091,1751044246006,-460.0,0.00019726,2]
[368165093,1751044246015,-835.16,0.00019726,2]
[368165095,1751044246024,-460.0,0.00019726,2]
[368165097,1751044246034,-300.34,0.00019726,2]
[368165099,1751044246043,-500.0,0.00019843,2]
[368165101,1751044246053,-500.0,0.00019843,2]
[368165103,1751044246062,-1453.05621627,0.000199,2]
[368165105,1751044246072,-7167.08109605,0.000199,2]
[368165107,1751044246081,-542.395085,0.0002,2]
[368165109,1751044246090,-460.0,0.0002,2]
[368165111,1751044246099,-460.0,0.0002,2]
[368165113,1751044246108,-460.0,0.0002,2]
[368165115,1751044246117,-346.62767756,0.0002,2]
[368165117,1751044246126,-460.0,0.0002,2]
[368165119,1751044246135,-460.0,0.0002,2]
[368165121,1751044246146,-460.0,0.0002,2]
[368165123,1751044246155,-460.0,0.0002,2]
[368165125,1751044246164,-460.0,0.0002,2]
[368165127,1751044246173,-460.0,0.0002,2]
[368165129,1751044246183,-460.0,0.0002,2]
[368165131,1751044246193,-971.18,0.0002,2]
[368165133,1751044246203,-460.0,0.0002,2]
[368165135,1751044246213,-460.0,0.0002,2]
[368165137,1751044246223,-460.0,0.0002,2]
[368165139,1751044246232,-501.52839297,0.0002,2]
[368165141,1751044246241,-460.0,0.0002,2]
[368165143,1751044246251,-460.0,0.0002,2]
[368165145,1751044246260,-460.0,0.0002,2]
[368165147,1751044246269,-460.0,0.0002,2]
[368165149,1751044246278,-460.0,0.0002,2]
[368165151,1751044246288,-460.0,0.0002,2]
[368165153,1751044246297,-460.0,0.0002,2]
[368165155,1751044246306,-460.0,0.0002,2]
[368165157,1751044246315,-460.0,0.0002,2]
[368165159,1751044246324,-460.0,0.0002,2]
[368165161,1751044246334,-460.0,0.0002,2]
[368165163,1751044246343,-460.0,0.0002,2]
[368165165,1751044246353,-556.90570204,0.0002,2]
[368165167,1751044246363,-649.97,0.0002,2]
[368165169,1751044246373,-460.0,0.0002,2]
[368165171,1751044246382,-460.0,0.0002,2]
[368165173,1751044246392,-460.0,0.0002,2]
[368165175,1751044246401,-460.0,0.0002,2]
[368165177,1751044246411,-460.0,0.0002,2]
[368165179,1751044246420,-460.0,0.0002,2]
[368165181,1751044246429,-718.47,0.0002,2]
[368165183,1751044246439,-533.18,0.0002,2]
[368165185,1751044246449,-460.0,0.0002,2]
[368165187,1751044246458,-460.0,0.0002,2]
[368165189,1751044246467,-430.0,0.0002,2]
[368165191,1751044246476,-460.0,0.0002,2]
[368165193,1751044246486,-460.0,0.0002,2]
[368165195,1751044246495,-460.0,0.0002,2]
[368165197,1751044246504,-460.0,0.0002,2]
[368165198,1751044246515,-767.68,0.0002,2]
[368165200,1751044246524,-593.6,0.0002,2]
[368165202,1751044246533,-460.0,0.0002,2]
[368165204,1751044246543,-460.0,0.0002,2]
[368165206,1751044246552,-460.0,0.0002,2]
[368165208,1751044246561,-460.0,0.0002,2]
[368165210,1751044246570,-587.96,0.0002,2]
[368165212,1751044246579,-460.0,0.0002,2]
[368165214,1751044246589,-460.0,0.0002,2]
[368165216,1751044246598,-256.58896146,0.0002,2]
[368165218,1751044246607,-460.0,0.0002,2]
[368165220,1751044246617,-460.0,0.0002,2]
[368165222,1751044246626,-460.0,0.0002,2]
[368165224,1751044246635,-4008.33,0.0002,2]
[368165226,1751044246644,-1317.0,0.0002,2]
[368165228,1751044246654,-460.0,0.0002,2]
[368165230,1751044246665,-460.0,0.0002,2]
[368165232,1751044246676,-559.86,0.0002,2]
[368165234,1751044246685,-4030.98,0.0002,2]
[368165236,1751044246694,-2388.15,0.0002,2]
[368165238,1751044246703,-4372.06,0.0002,2]
[368165240,1751044246712,-460.0,0.0002,2]
[368165242,1751044246721,-1057.19,0.0002,2]
[368165253,1751044246815,-460.0,0.0002,2]
[368165255,1751044246824,-650.22,0.0002,2]
[368165257,1751044246834,-460.0,0.0002,2]
[368165259,1751044246843,-1848.03,0.0002,2]
[368165261,1751044246852,-460.0,0.0002,2]
[368165262,1751044246861,-460.0,0.0002,2]
[368165264,1751044246871,-1314.08,0.0002,2]